Cogmind - Beta 11.1 @@@ ROGUE MODE // 2022.08.31 @ 18:51:11 Player: darlorth Result: Escaped! Performance ------------- Evolutions (9) 4500 Regions Visited (16) 3200 Robots Destroyed (155) 775 Value Destroyed (4233) 4233 Prototype IDs (18) 360 Alien Tech Used (0) 0 Bonus (4120) 4120 TOTAL SCORE: 17188 Bonus ------- High Alert Combat Kills 62 Follower Combat Kills 578 Entered DSFs 500 Win 3000 Friendly Fire -20 Cogmind --------- Core Integrity 1470/1600 Matter 234/300 Energy 85/100 System Corruption 0% Temperature Cool (6) Movement Flying (20) Location To Epsilon Eridani Parts ------- > --- POWER (1) -------- Improved Fusion Compressor > --- PROPULSION (8) --- Biomechanical Wings Q-thruster Q-thruster Impulse Thruster Array Improved Q-thruster Improved Q-thruster Improved Q-thruster > --- UTILITY (13) ----- Advanced Power Amplifier Experimental Cooling System Medium Storage Unit Improved Trap Scanner Machine Analyzer Advanced Visual Processing Unit Experimental Signal Interpreter Improved Terrain Scanner Advanced Terrain Scan Processor Advanced Transmission Jammer Improved Reaction Control System Advanced System Restoration Module Mini Drone Bay (1/3) > --- WEAPON (3) ------- Advanced Datajack Power Sword > --- INVENTORY (10) --- Quantum Reactor Q-thruster Experimental Cooling System Medium Matter Pod (100) Advanced Weight Redist. System Improved Core Shielding Advanced Powered Armor Enhanced Nova Cannon Micro-nuke Launcher Peak State ------------ > --- POWER ------------ Improved Fusion Compressor > --- PROPULSION ------- Field Propulsion Drive Impulse Thruster Advanced Surge Thruster Cooled Field Propulsion Drive Q-thruster Q-thruster Q-thruster Improved Q-thruster > --- UTILITY ---------- Advanced Power Amplifier Experimental Cooling System Large Storage Unit Improved Trap Scanner Machine Analyzer Advanced Visual Processing Unit Experimental Signal Interpreter Advanced Terrain Scan Processor Advanced Transmission Jammer Improved Utility Shielding Advanced Force Field Improved Component Analysis Suite Mini Drone Bay > --- WEAPON ----------- Advanced Datajack Power Sword > --- INVENTORY -------- Quantum Reactor Light Quantum Reactor Cooled Field Propulsion Drive Q-thruster Experimental Cooling System Medium Storage Unit Medium Matter Pod Advanced Weight Redist. System Advanced Quantum Shading Machine Improved Terrain Scanner Reflective Plating Advanced Powered Armor Advanced System Restoration Module Enhanced Nova Cannon Micro-nuke Launcher [Rating: 159] Favorites ----------- Power Ion Engine Engine Ion Engine Power Core Light Nuclear Core Reactor Antimatter Reactor Propulsion Light Treads Treads Light Treads Wheel Wheel Hover Unit Cooled Aerolev Unit Flight Unit Biomechanical Wings Utility Large Storage Unit Device Trap Scanner Storage Large Storage Unit Processor Signal Interpreter Protection Improved Utility Shielding Weapon Light Cannon Energy Gun Heavy Particle Gun Energy Cannon Advanced Beam Cannon Ballistic Gun High-powered Shotgun Ballistic Cannon Light Cannon Launcher Grenade Launcher Impact Weapon Impact Mace Slashing Weapon Power Sword Piercing Weapon Heavy Pick Special Melee Weapon Advanced Datajack Build | -11 -10 -10 -10 -9 -8 -8 -7 -6 -6 -6 -5 -4 -3 -2 -2 -1 ------- Run | Scr Mat Min Exi Min Mat Sto Fac Fac Was Fac Fac Fac Res Res DSF Acc Slots Evolved 18 | . . . . . 4 . 2 2 . . 2 2 2 2 . 2 Power . | . . . . . . . . . . . . . . . . . Propulsion 6 | . . . . . 2 . . . . . 2 2 . . . . Utility 11 | . . . . . 2 . 2 1 . . . . 2 2 . 2 Weapon 1 | . . . . . . . . 1 . . . . . . . . Parts Attached 181 | 5 7 2 . . 4 19 7 22 1 35 7 29 6 1 3 33 Power 17 | . 1 . . . . 2 1 3 . 6 1 3 . . . . Engine 4 | . 1 . . . . . . 2 . 1 . . . . . . Core 10 | . . . . . . 2 1 1 . 3 1 2 . . . . Reactor 3 | . . . . . . . . . . 2 . 1 . . . . Propulsion 49 | 2 . 1 . . 2 4 1 5 . 9 2 10 . . 2 11 Treads 10 | 2 . 1 . . 2 4 1 . . . . . . . . . Leg . | . . . . . . . . . . . . . . . . . Wheel 1 | . . . . . . . . 1 . . . . . . . . Hover 7 | . . . . . . . . 4 . 3 . . . . . . Flight 31 | . . . . . . . . . . 6 2 10 . . 2 11 Utility 76 | 1 4 . . . 1 2 3 9 1 12 4 14 2 . 1 22 Device 37 | . . . . . 1 1 . 4 1 4 2 9 1 . . 14 Storage 7 | 1 2 . . . . . . . . 1 . 1 . . . 2 Processor 12 | . 1 . . . . . 1 2 . 2 2 2 1 . . 1 Hackware . | . . . . . . . . . . . . . . . . . Protection 20 | . 1 . . . . 1 2 3 . 5 . 2 . . 1 5 Artifact . | . . . . . . . . . . . . . . . . . Weapon 39 | 2 2 1 . . 1 11 2 5 . 8 . 2 4 1 . . Energy Gun 6 | . . . . . . 3 . 2 . 1 . . . . . . Energy Cannon 6 | . . . . . . 3 . 1 . . . . 1 1 . . Ballistic Gun 5 | 2 . . . . . 3 . . . . . . . . . . Ballistic Cannon 7 | . 2 . . . 1 . 2 1 . 1 . . . . . . Launcher 3 | . . 1 . . . 1 . . . . . . 1 . . . Special Weapon . | . . . . . . . . . . . . . . . . . Impact Weapon 1 | . . . . . . . . . . 1 . . . . . . Slashing Weapon 4 | . . . . . . 1 . 1 . . . 1 1 . . . Piercing Weapon 6 | . . . . . . . . . . 5 . 1 . . . . Special Melee Weapon 1 | . . . . . . . . . . . . . 1 . . . Unidentified Prototypes 14 | . . . . . 1 5 . 1 . 3 . 2 1 . . 1 Parts Lost 51 | . . . . . . 4 5 11 . 8 . 16 . . 2 5 Power 6 | . . . . . . . 1 2 . 2 . 1 . . . . Propulsion 20 | . . . . . . 3 2 4 . . . 6 . . 1 4 Utility 16 | . . . . . . . 1 3 . 5 . 5 . . 1 1 Weapon 9 | . . . . . . 1 1 2 . 1 . 4 . . . . Highest Loss Streak 5 | . . . . . . 1 5 4 . 3 . 5 . . 2 2 To Critical Strikes . | . . . . . . . . . . . . . . . . . Average Slot Usage (%) 90 | . 95 100 100 100 90 91 92 80 86 84 94 88 88 86 91 94 Engine 4 | . 14 14 14 14 9 2 . 1 6 1 . . . . . . Core 3 | . . . . . . 6 7 3 . 4 5 4 4 4 4 4 Treads 16 | . 28 28 28 28 36 32 28 8 . . . . . . . . Hover 2 | . . . . . . . . 1 20 15 . . . . . . Flight 7 | . . . . . . . . . . 5 29 36 33 30 31 30 Device 9 | . . . . . 9 9 7 13 20 10 13 12 9 8 8 24 Storage 8 | . 14 14 14 14 9 9 7 6 6 6 5 6 4 4 4 4 Processor 11 | . . 14 14 14 9 9 10 13 13 13 21 13 17 17 17 16 Protection 5 | . 9 . . . . 4 14 11 6 10 . . 9 8 11 5 Energy Gun 1 | . . . . . . 2 3 6 6 1 . . . . . . Energy Cannon 1 | . . . . . . 7 3 1 . . . . 1 4 4 . Ballistic Cannon 7 | . 26 14 14 14 17 1 7 8 . 1 . . . . . . Launcher 2 | . . 13 14 14 . . . . . . . . . . . . Piercing Weapon 2 | . . . . . . . . . . 8 17 10 . . . . Naked Turns . | . . . . . . . . . . . . . . . . . Heaviest Build 72 | 8 32 31 31 31 39 40 56 55 37 60 29 35 42 44 59 72 Greatest Support 82 | 40 40 40 40 40 80 82 82 62 27 38 36 54 47 47 57 67 Greatest Overweight (x) 16 | . . . . . . . . 16 1 11 . 1 . . 1 1 Average Overweight (x) . | . . . . . . . . 1 1 . . . . . . . Largest Inventory Capacity 15 | 8 15 15 15 15 15 15 15 15 15 15 10 10 10 10 10 15 Average Capacity 13 | 6 11 15 15 15 15 15 15 15 15 13 10 10 10 10 10 12 Most Carried 15 | 4 15 15 15 15 15 15 15 15 15 15 10 10 10 10 10 15 Average Carried 12 | 1 8 14 15 14 13 14 13 14 14 12 8 9 9 10 9 11 Final Capacity 15 | 8 15 15 15 15 15 15 15 15 15 10 10 10 10 10 10 10 Final Carried 15 | 2 15 15 15 15 15 15 12 15 15 10 8 10 10 10 10 9 Class Distribution -------------------- 51% | Mutant 16% | Scavenger-Mutant 9% | Scout 8% | Tank 5% | Commander-Mutant 4% | Sprinter 3% | Ninja Dominant Class ---------------- Mutant | -10/Materials Mutant | -10/Mines Mutant | -10/Exiles Mutant | -9/Mines Mutant | -8/Materials Scavenger-Mutant | -8/Storage Scavenger-Mutant | -7/Factory Tank | -6/Factory Scavenger-Mutant | -6/Waste Mutant | -6/Factory Scout | -5/Factory Scout | -4/Factory Sprinter | -3/Research Sprinter | -2/Research Sprinter | -2/DSF Ninja | -1/Access Resources | -11 -10 -10 -10 -9 -8 -8 -7 -6 -6 -6 -5 -4 -3 -2 -2 -1 ----------- Run | Scr Mat Min Exi Min Mat Sto Fac Fac Was Fac Fac Fac Res Res DSF Acc Matter Collected 4048 | 222 338 38 . 14 110 310 96 639 33 464 70 254 309 95 . 1056 Remotely 429 | . . . . . . . . 429 . . . . . . . . Salvage Created 6830 | . 342 30 . 8 88 688 130 1394 . 1528 27 676 506 . . 1413 Parts 346 | . 26 7 . . 6 34 6 52 . 67 2 39 29 . . 78 Haulers Intercepted 12 | . 2 . . . 2 4 . . . 1 . 2 . . . 1 Recyclers Shooed 6 | . . . . . . 1 . 3 . 1 . . . . . 1 Parts Field Recycled . | . . . . . . . . . . . . . . . . . Retrieved Matter . | . . . . . . . . . . . . . . . . . Parts Self-Destructed . | . . . . . . . . . . . . . . . . . Prevented . | . . . . . . . . . . . . . . . . . Kills | -11 -10 -10 -10 -9 -8 -8 -7 -6 -6 -6 -5 -4 -3 -2 -2 -1 ------- Run | Scr Mat Min Exi Min Mat Sto Fac Fac Was Fac Fac Fac Res Res DSF Acc Combat Hostiles Destroyed 70 | . 7 5 . 1 . 7 5 21 . 12 . 8 . . . 4 Melee 23 | . . . . . . . . 3 . 8 . 8 . . . 4 Guns 8 | . . . . . . 2 . 4 . 2 . . . . . . Cannons 25 | . 7 . . . . 5 5 7 . 1 . . . . . . AOE 10 | . . 5 . 1 . . . 4 . . . . . . . . Classes Destroyed 16 | . 4 1 . 1 1 5 . 2 . 1 . . . . . 1 Worker 23 | . . . . . . 2 . 1 . 5 1 . 5 . . 9 Builder 12 | . . . . . 1 . . 2 . 2 . . 4 . . 3 Tunneler 5 | . . . . . . . . . . 2 . . . . . 3 Hauler 12 | . 2 . . . 2 4 . . . 1 . 2 . . . 1 Recycler 18 | . . . . . . 2 . 3 . 4 . 1 2 . . 6 Operator 4 | . 1 . . . . 1 . 1 . 1 . . . . . . Watcher 12 | . 3 . . . . 1 . 1 . 2 . 1 1 . . 3 Swarmer 11 | . . 5 . . . 1 . 2 . . . 3 . . . . Cutter 1 | . . . . . . . . . . . . . . . . 1 Grunt 35 | . 7 . . . . 3 3 14 . 8 . . . . . . Brawler 1 | . . . . . . . . 1 . . . . . . . . Duelist 1 | . . . . . . 1 . . . . . . . . . . Sentry 4 | . . . . . . 1 1 1 . 1 . . . . . . Hunter 2 | . . . . . . 1 1 . . . . . . . . . Programmer 14 | . . . . . . . . 3 . 3 . 5 . . . 3 Assembled 1 | . . . . 1 . . . . . . . . . . . . Best Kill Streak 9 | . 3 3 . 1 2 3 2 7 . 6 1 3 5 . . 9 Combat Bots Only 6 | . 3 3 . 1 . 2 2 6 . 2 . 3 . . . 2 Max Kills in Single Turn 4 | . 1 2 . 1 1 2 1 4 . 1 1 1 1 . . 1 Gunslinging . | . . . . . . . . . . . . . . . . . Exploded 2 | . . 2 . 1 . . . 2 . . . . . . . . Melee 1 | . . . . . . . . 1 . 1 . 1 . . . 1 Uniques/NPCs Destroyed . | . . . . . . . . . . . . . . . . . Combat | -11 -10 -10 -10 -9 -8 -8 -7 -6 -6 -6 -5 -4 -3 -2 -2 -1 -------- Run | Scr Mat Min Exi Min Mat Sto Fac Fac Was Fac Fac Fac Res Res DSF Acc Damage Taken 9348 | . 201 28 . . 117 1106 1073 1828 . 2091 . 1448 . . 182 1274 Core 1336 | . 45 8 . . 51 53 30 278 . 366 . 375 . . . 130 Absorbed by Shields 14 | . . . . . . . . . . . . . . . . 14 Redirected to Shielding 294 | . 6 . . . . . 52 41 . . . . . . . 195 Regen/Repaired (Parts) 128 | . . . . . . 128 . . . . . . . . . . Core Remaining (%) 83 | 100 . . . 78 . 81 95 . . 24 100 67 100 . 100 91 Volleys Fired 185 | . 33 4 . 1 7 57 20 49 . 12 . . 1 1 . . Largest 3 | . 2 1 . 1 2 2 2 3 . 3 . . 1 1 . . Hottest 201 | . 70 30 . 30 70 133 129 201 . 189 . . 94 120 . . Shots Fired 381 | . 60 4 . 1 14 103 40 134 . 23 . . 1 1 . . Gun 117 | . . . . . . 43 7 57 . 10 . . . . . . Cannon 259 | . 60 . . . 14 60 33 77 . 13 . . 1 1 . . Launcher 5 | . . 4 . 1 . . . . . . . . . . . . Special . | . . . . . . . . . . . . . . . . . Kinetic 200 | . 60 . . . 14 31 26 56 . 13 . . . . . . Thermal 175 | . . . . . . 72 14 78 . 10 . . . 1 . . Explosive 5 | . . 4 . 1 . . . . . . . . . . . . Electromagnetic 1 | . . . . . . . . . . . . . 1 . . . Robot Hit Streak 24 | . 6 2 . . 2 9 10 24 . 2 . . . . . . Robot Miss Streak 7 | . 5 1 . 2 6 7 5 4 . 2 . . . . . . Penetration Max 1 | . . . . . . 1 . . . . . . . . . . Secondary Targets . | . . . . . . . . . . . . . . . . . Shots Hit Robots 408 | . 32 1 . . 4 58 35 110 . 69 7 28 17 . . 47 Core Hits 215 | . 16 6 . 2 4 27 26 62 . 28 . 13 8 . . 23 Critical Kills 1 | . . . . . . . . 1 . . . . . . . . Critical Parts Destroyed 3 | . . . . . . . . . . 3 . . . . . . Critical Strikes 20 | . . . . . . . . 2 . 9 . 5 1 . . 3 Burn 1 | . . . . . . . . 1 . . . . . . . . Meltdown 1 | . . . . . . . . 1 . . . . . . . . Blast 1 | . . . . . . . . . . 1 . . . . . . Smash 3 | . . . . . . . . . . 3 . . . . . . Sever 4 | . . . . . . . . . . . . . 1 . . 3 Impale 10 | . . . . . . . . . . 5 . 5 . . . . Melee Attacks 369 | . . . . . . 4 . 7 . 84 32 120 30 . . 92 Impact 12 | . . . . . . . . . . 12 . . . . . . Slashing 139 | . . . . . . 4 . 7 . . . 7 29 . . 92 Piercing 217 | . . . . . . . . . . 72 32 113 . . . . Sneak Attacks 67 | . . . . . . 2 . 2 . 19 3 5 13 . . 23 Combat Hostiles . | . . . . . . . . . . . . . . . . . Follow-up Attacks 16 | . . . . . . . . . . 8 1 7 . . . . Damage Inflicted 15104 | . 576 296 . 32 145 1276 654 3112 . 3092 467 1157 1234 . . 3063 Guns 1578 | . . . . . . 488 80 848 . 162 . . . . . . Cannons 3305 | . 576 . . . 139 609 558 1329 . 94 . . . . . . Explosions 1033 | . . 293 . 32 . . . 708 . . . . . . . . Melee 9127 | . . . . . . 158 . 212 . 2836 467 1157 1234 . . 3063 Ramming 61 | . . 3 . . 6 21 16 15 . . . . . . . . Kinetic 2433 | . 576 . . . 139 376 435 813 . 94 . . . . . . Thermal 2900 | . . . . . . 721 203 1814 . 162 . . . . . . Explosive 583 | . . 293 . 32 . . . 258 . . . . . . . . Electromagnetic . | . . . . . . . . . . . . . . . . . Impact 674 | . . . . . . . . . . 674 . . . . . . Slashing 4708 | . . . . . . 158 . 212 . . . 41 1234 . . 3063 Piercing 3745 | . . . . . . . . . . 2162 467 1116 . . . . Highest Corruption 8 | . . . . . . . . 4 4 8 . 7 . . . 5 Average Corruption 4 | . . . . . . . . 2 4 5 . 3 . . . 4 Corruption Purged 8 | . . . . . . . . . . . . 2 . . . 6 Corruption Blocked . | . . . . . . . . . . . . . . . . . Effects 95 | . . . . . . . . 15 9 41 . 18 . . . 12 Message Errors 26 | . . . . . . . . 4 3 7 . 8 . . . 4 Matter Fused 18 | . . . . . . . . 2 3 9 . 3 . . . 1 Heat Flow Errors 16 | . . . . . . . . 3 1 8 . 1 . . . 3 Energy Discharges 15 | . . . . . . . . 1 . 9 . 3 . . . 2 Parts Rejected 3 | . . . . . . . . . . 2 . . . . . 1 Data Loss (minor) 6 | . . . . . . . . 2 1 1 . 2 . . . . Data Loss (major) 7 | . . . . . . . . 1 1 3 . 1 . . . 1 Misfires 1 | . . . . . . . . . . 1 . . . . . . Alerts 2 | . . . . . . . . 1 . 1 . . . . . . Weapon Failures 1 | . . . . . . . . 1 . . . . . . . . Overload Shots . | . . . . . . . . . . . . . . . . . Overflow Damage 1905 | . 7 3 . . 1 30 . 218 . 678 68 100 339 . . 461 Projectiles 36 | . 7 . . . . 6 . 23 . . . . . . . . Explosions 166 | . . 3 . . . . . 163 . . . . . . . . Melee 1703 | . . . . . 1 24 . 32 . 678 68 100 339 . . 461 Knockbacks 38 | . 7 . . . 1 . 11 17 . 2 . . . . . . Impact 2 | . . . . . . . . . . 2 . . . . . . Kinetic 33 | . 5 . . . 1 . 11 16 . . . . . . . . Secondary 3 | . 2 . . . . . . 1 . . . . . . . . Self-Inflicted Damage 199 | . . 4 . . . . . 195 . . . . . . . . Shots 4 | . . 1 . . . . . 3 . . . . . . . . Rammed 12 | . . 1 . . 1 4 1 5 . . . . . . . . Targets Rammed 14 | . . 1 . . 1 5 1 6 . . . . . . . . Kicked . | . . . . . . . . . . . . . . . . . Crushed 2 | . . . . . . 1 . 1 . . . . . . . . Highest Temperature 484 | . 97 . . . . 443 484 298 170 236 . 88 77 76 . 221 Average Temperature 88 | . 27 . . . . 98 217 76 113 78 . 25 20 37 . 79 Received Heat Transfer 2289 | . 129 . . . 18 396 351 540 . 807 . 30 . . . 18 Effects 4 | . . . . . . 2 2 . . . . . . . . . Shutdowns 2 | . . . . . . 1 1 . . . . . . . . . Damage (minor) 2 | . . . . . . 1 1 . . . . . . . . . Siege Activations . | . . . . . . . . . . . . . . . . . Robots Corrupted . | . . . . . . . . . . . . . . . . . Combat Hostiles . | . . . . . . . . . . . . . . . . . Parts Fried 9 | . . . . . . . . . . 9 . . . . . . Impact Corruptions 15 | . . . . . 1 . . . . 14 . . . . . . Robots Melted 3 | . . . . . . . . 3 . . . . . . . . Combat Hostiles 3 | . . . . . . . . 3 . . . . . . . . Parts Melted 12 | . . . . . . 6 . 5 . 1 . . . . . . Heat Transferred 4468 | . . . . . . 1369 370 2470 . 259 . . . . . . Parts Sabotaged . | . . . . . . . . . . . . . . . . . Parts Stolen . | . . . . . . . . . . . . . . . . . Parts Stripped . | . . . . . . . . . . . . . . . . . Power Chain Reactions . | . . . . . . . . . . . . . . . . . Missiles Intercepted . | . . . . . . . . . . . . . . . . . Alert | -11 -10 -10 -10 -9 -8 -8 -7 -6 -6 -6 -5 -4 -3 -2 -2 -1 ------- Run | Scr Mat Min Exi Min Mat Sto Fac Fac Was Fac Fac Fac Res Res DSF Acc Peak Influence 819 | . 109 179 . 21 125 456 205 379 103 436 446 331 337 192 147 819 Initial 218 | . . 30 . . . . 105 100 103 72 213 218 173 189 147 76 Average 142 | . 45 52 . 2 58 231 146 147 103 107 310 84 258 191 140 331 Maximum Alert Level 3 | . . . . . . 2 1 1 . 2 2 1 1 . . 3 Low Security (%) 70 | 100 100 100 . 100 100 33 75 68 100 82 . 90 14 100 100 37 Level 1 23 | . . . . . . 49 24 31 . 15 57 9 85 . . 36 Level 2 5 | . . . . . . 17 . . . 2 42 . . . . 10 Level 3 . | . . . . . . . . . . . . . . . . 15 Level 4 . | . . . . . . . . . . . . . . . . . Level 5 . | . . . . . . . . . . . . . . . . . High Security . | . . . . . . . . . . . . . . . . . Max Security . | . . . . . . . . . . . . . . . . . Squads Dispatched 42 | . 2 . . . 3 5 2 8 . 8 2 6 . . . 6 Investigation 11 | . . . . . . 2 . 3 . 3 1 2 . . . . Extermination 10 | . . . . . . . 1 3 . 2 . 2 . . . 2 Reinforcement 17 | . 2 . . . 2 2 1 . . 3 1 2 . . . 4 Assault 1 | . . . . . . 1 . . . . . . . . . . Garrison 3 | . . . . . 1 . . 2 . . . . . . . . Intercept . | . . . . . . . . . . . . . . . . . Searches Triggered . | . . . . . . . . . . . . . . . . . Construction Impeded 2 | . . . . . 1 . 1 . . . . . . . . . Haulers Reinforced 2 | . . . . . . . . . . 1 1 . . . . . Active Scanning Responses . | . . . . . . . . . . . . . . . . . Cargo Convoy Interrupts . | . . . . . . . . . . . . . . . . . Stealth | -11 -10 -10 -10 -9 -8 -8 -7 -6 -6 -6 -5 -4 -3 -2 -2 -1 --------- Run | Scr Mat Min Exi Min Mat Sto Fac Fac Was Fac Fac Fac Res Res DSF Acc Distress Signals 12 | . 1 . . . 2 3 . . . 1 . 1 . . . 4 Communications Jammed . | . . . . . . . . . . . . . . . . . Distress Signals . | . . . . . . . . . . . . . . . . . Times Spotted 191 | . 13 5 . 3 8 32 6 30 . 31 . 23 1 . 1 38 Peak Tracking Total 12 | . 3 3 . 1 4 5 4 5 . 5 . 8 1 . 1 12 Tactical Retreats 26 | . . . . . 1 1 . 1 . 5 . 7 . . . 11 Traps | -11 -10 -10 -10 -9 -8 -8 -7 -6 -6 -6 -5 -4 -3 -2 -2 -1 ------- Run | Scr Mat Min Exi Min Mat Sto Fac Fac Was Fac Fac Fac Res Res DSF Acc Traps Triggered 6 | . . . . . . 2 . 2 . . . 2 . . . . Indirectly . | . . . . . . . . . . . . . . . . . Trap Hack Attempts . | . . . . . . . . . . . . . . . . . Triggered . | . . . . . . . . . . . . . . . . . Disarmed . | . . . . . . . . . . . . . . . . . Reprogrammed . | . . . . . . . . . . . . . . . . . Reused . | . . . . . . . . . . . . . . . . . Traps Extracted . | . . . . . . . . . . . . . . . . . Installed . | . . . . . . . . . . . . . . . . . Triggered . | . . . . . . . . . . . . . . . . . Machines | -11 -10 -10 -10 -9 -8 -8 -7 -6 -6 -6 -5 -4 -3 -2 -2 -1 ---------- Run | Scr Mat Min Exi Min Mat Sto Fac Fac Was Fac Fac Fac Res Res DSF Acc Machines Disabled 15 | . 1 . . . . 5 . 8 . 1 . . . . . . Max in Single Turn 4 | . 1 . . . . 1 . 4 . 1 . . . . . . Garrison Access 5 | . . . . . . 1 . 1 . 1 1 1 . . . . Energy Cycler 1 | . . . . . . . . . . . . . . . . 1 Machines Sabotaged . | . . . . . . . . . . . . . . . . . Garrisons Compromised . | . . . . . . . . . . . . . . . . . Overloaded Fab Kills . | . . . . . . . . . . . . . . . . . Hacking | -11 -10 -10 -10 -9 -8 -8 -7 -6 -6 -6 -5 -4 -3 -2 -2 -1 --------- Run | Scr Mat Min Exi Min Mat Sto Fac Fac Was Fac Fac Fac Res Res DSF Acc Machines Accessed 40 | . 2 . 4 1 2 9 . 6 . 4 1 9 1 1 . . Terminals 23 | . 2 . . . 2 6 . 4 . 1 . 6 1 1 . . Fabricators . | . . . . . . . . . . . . . . . . . Repair Stations 2 | . . . . . . 1 . . . 1 . . . . . . Recycling Units 6 | . . . . . . 2 . 1 . 1 . 2 . . . . Scanalyzers . | . . . . . . . . . . . . . . . . . Garrison Access 4 | . . . . . . . . 1 . 1 1 1 . . . . Total Hacks 126 | . 5 . 49 1 7 23 . 12 . 8 3 15 1 2 . . Successful 78 | . 2 . 49 1 3 11 . 3 . 2 1 5 . 1 . . Failed 48 | . 3 . . . 4 12 . 9 . 6 2 10 1 1 . . Catastrophic 7 | . . . . . . . . 3 . 1 . 3 . . . . Database Lockouts . | . . . . . . . . . . . . . . . . . Manual 30 | . 5 . . . . 5 . 7 . 1 1 10 1 . . . Terminals 48 | . 5 . . . 7 13 . 8 . 1 . 11 1 2 . . Fabricators . | . . . . . . . . . . . . . . . . . Repair Stations 9 | . . . . . . 7 . . . 2 . . . . . . Recycling Units 9 | . . . . . . 3 . 2 . 2 . 2 . . . . Scanalyzers . | . . . . . . . . . . . . . . . . . Garrison Access 10 | . . . . . . . . 2 . 3 3 2 . . . . Terminal Hacks 66 | . 2 . 49 1 3 6 . 2 . . . 2 . 1 . . Record 49 | . . . 49 . . . . . . . . . . . . . Part Schematic 1 | . 1 . . . . . . . . . . . . . . . Prototype ID Bank 1 | . . . . . . 1 . . . . . . . . . . Open Door 4 | . . . . 1 . 3 . . . . . . . . . . Open DSF 3 | . . . . . . . . 1 . . . 1 . 1 . . Alert Level 1 | . . . . . . 1 . . . . . . . . . . Unreport Threat 3 | . . . . . . 1 . 1 . . . 1 . . . . Dispatch Records 1 | . . . . . 1 . . . . . . . . . . . Hauler Manifests 1 | . . . . . 1 . . . . . . . . . . . Zone Layout 2 | . 1 . . . 1 . . . . . . . . . . . Fabricator Hacks . | . . . . . . . . . . . . . . . . . Repair Station Hacks 4 | . . . . . . 3 . . . 1 . . . . . . Scan Component 3 | . . . . . . 2 . . . 1 . . . . . . Repair 1 | . . . . . . 1 . . . . . . . . . . Recycling Unit Hacks 4 | . . . . . . 2 . . . . . 2 . . . . Retrieve Components 4 | . . . . . . 2 . . . . . 2 . . . . Scanalyzer . | . . . . . . . . . . . . . . . . . Garrison Access Hacks 2 | . . . . . . . . 1 . . . 1 . . . . Seal Access 2 | . . . . . . . . 1 . . . 1 . . . . Unauthorized Hacks 2 | . . . . . . . . . . 1 1 . . . . . Terminals . | . . . . . . . . . . . . . . . . . Fabricators . | . . . . . . . . . . . . . . . . . Repair Stations . | . . . . . . . . . . . . . . . . . Recycling Units . | . . . . . . . . . . . . . . . . . Scanalyzers . | . . . . . . . . . . . . . . . . . Garrison Access 2 | . . . . . . . . . . 1 1 . . . . . Jam 2 | . . . . . . . . . . 1 1 . . . . . Data Cores Recovered . | . . . . . . . . . . . . . . . . . Used . | . . . . . . . . . . . . . . . . . Hacking Detections 27 | . 1 . . . 2 6 . 5 . 3 1 7 1 1 . . Full Trace Events 8 | . . . . . . 2 . 3 . 2 . 1 . . . . Feedback Events . | . . . . . . . . . . . . . . . . . Feedback Blocked . | . . . . . . . . . . . . . . . . . Robot Schematics Acquired . | . . . . . . . . . . . . . . . . . Robots Built . | . . . . . . . . . . . . . . . . . Authchips . | . . . . . . . . . . . . . . . . . Time . | . . . . . . . . . . . . . . . . . Total Robot Build Rating . | . . . . . . . . . . . . . . . . . Part Schematics Acquired 1 | . 1 . . . . . . . . . . . . . . . Parts Built . | . . . . . . . . . . . . . . . . . Authchips . | . . . . . . . . . . . . . . . . . Time . | . . . . . . . . . . . . . . . . . Total Part Build Rating . | . . . . . . . . . . . . . . . . . Parts Repaired 1 | . . . . . . 1 . . . . . . . . . . Time 26 | . . . . . . 26 . . . . . . . . . . Parts Recycled . | . . . . . . . . . . . . . . . . . Recycled Matter . | . . . . . . . . . . . . . . . . . Retrieved Matter . | . . . . . . . . . . . . . . . . . Retrieved Components 13 | . . . . . . 10 . . . . . 3 . . . . Parts Scanalyzed . | . . . . . . . . . . . . . . . . . Part Schematics Acquired . | . . . . . . . . . . . . . . . . . Parts Damaged . | . . . . . . . . . . . . . . . . . Bothacking | -11 -10 -10 -10 -9 -8 -8 -7 -6 -6 -6 -5 -4 -3 -2 -2 -1 ------------ Run | Scr Mat Min Exi Min Mat Sto Fac Fac Was Fac Fac Fac Res Res DSF Acc Used RIF Installer . | . . . . . . . . . . . . . . . . . Robots Hacked . | . . . . . . . . . . . . . . . . . Non-combat . | . . . . . . . . . . . . . . . . . Combat . | . . . . . . . . . . . . . . . . . Robot Hacks Applied . | . . . . . . . . . . . . . . . . . Relay Couplers Released 2 | . . . . . . 2 . . . . . . . . . . Machine Destruction 2 | . . . . . . 2 . . . . . . . . . . Fabnet Peak Effective % . | . . . . . . . . . . . . . . . . . Robots Rewired . | . . . . . . . . . . . . . . . . . Allies Hacked . | . . . . . . . . . . . . . . . . . Hacks Repelled . | . . . . . . . . . . . . . . . . . Allies | -11 -10 -10 -10 -9 -8 -8 -7 -6 -6 -6 -5 -4 -3 -2 -2 -1 -------- Run | Scr Mat Min Exi Min Mat Sto Fac Fac Was Fac Fac Fac Res Res DSF Acc Total Allies 13 | . . 3 . . . 10 . . . . . . . . . . Largest Group 10 | . . 3 3 3 2 10 . . . . . . . . . . Highest-Rated Group 173 | . . 40 40 40 24 173 . . . . . . . . . . Highest-Rated Ally 29 | . . 16 16 16 16 29 . . . . . . . . . . Total Orders 16 | . . . . . 2 13 . . . . . . . . . 1 STAY 1 | . . . . . . 1 . . . . . . . . . . EXPLORE 6 | . . . . . . 5 . . . . . . . . . 1 RETURN 9 | . . . . . 2 7 . . . . . . . . . . Ally Attacks 140 | . . 1 . 10 23 106 . . . . . . . . . . Total Damage 1402 | . . 16 . 71 171 1144 . . . . . . . . . . Kills 22 | . . 1 . 2 3 16 . . . . . . . . . . Allies Corrupted . | . . . . . . . . . . . . . . . . . Allies Melted . | . . . . . . . . . . . . . . . . . Intel | -11 -10 -10 -10 -9 -8 -8 -7 -6 -6 -6 -5 -4 -3 -2 -2 -1 ------- Run | Scr Mat Min Exi Min Mat Sto Fac Fac Was Fac Fac Fac Res Res DSF Acc Robot Analysis Total . | . . . . . . . . . . . . . . . . . Derelict Logs Recovered 2 | . . 2 . . . . . . . . . . . . . . Drone Launches 41 | . . . . . 8 27 . . . . . . . . . 6 Drone Recoveries 23 | . . . . . 4 15 . . . . . . . . . 4 Exploration | -11 -10 -10 -10 -9 -8 -8 -7 -6 -6 -6 -5 -4 -3 -2 -2 -1 ------------- Run | Scr Mat Min Exi Min Mat Sto Fac Fac Was Fac Fac Fac Res Res DSF Acc Turns Passed 13336 | 66 1373 1090 850 155 419 2677 293 1735 284 1833 240 1344 174 23 23 757 Spaces Moved 11037 | 45 753 672 525 95 225 1507 141 679 287 1504 560 1759 379 77 33 1796 Core 58 | 15 . . . . . . . 41 . 2 . . . . . . Treads 4417 | 30 753 672 525 95 225 1507 141 469 . . . . . . . . Legs . | . . . . . . . . . . . . . . . . . Wheels 89 | . . . . . . . . 89 . . . . . . . . Hover 1569 | . . . . . . . . 80 287 1202 . . . . . . Flight 4904 | . . . . . . . . . . 300 560 1759 379 77 33 1796 Fastest Speed 12 | 50 160 160 160 160 160 156 155 97 97 45 25 12 22 22 19 17 Average Speed 96 | 123 160 160 160 160 160 159 155 209 97 94 27 30 22 22 53 21 Slowest Speed 850 | 160 160 160 160 160 160 160 156 850 97 600 28 104 22 22 93 97 Overloaded Moves 11 | . . . . . . . . . . . . 11 . . . . Propulsion Burnouts . | . . . . . . . . . . . . . . . . . Robots Hopped 8 | . . . . . . . . . . . 2 4 . . . 2 Cave-ins Triggered 1 | . . . . . . . . . . . . 1 . . . . Exploration Rate (%) 42 | 3 76 99 90 25 16 97 5 17 95 30 18 39 13 3 47 48 Regions Visited 16 Branch Regions 4 Pre-discovered Areas 2 | . . 1 1 . . . . . . . . . . . . . Known Exits Taken 12 | . 1 1 1 1 1 1 1 . . 1 1 1 1 1 . . Unknown Exits Taken 1 | 1 . . . . . . . . . . . . . . . . Scrap Searched 2 | . . 1 . 1 . . . . . . . . . . . . Spaces Dug 108 | . . . . . . . . . . 5 15 51 6 1 . 30 Terrain Destroyed 208 | . . 20 . 7 . . 1 66 . 11 15 51 6 1 . 30 Melee 106 | . . . . . . . . . . 4 15 51 6 . . 30 Projectile 14 | . . . . . . . 1 5 . 7 . . . 1 . . AOE 88 | . . 20 . 7 . . . 61 . . . . . . . . Terrain Rammed . | . . . . . . . . . . . . . . . . . Walls Destroyed . | . . . . . . . . . . . . . . . . . Machines Disabled . | . . . . . . . . . . . . . . . . . Actions | -11 -10 -10 -10 -9 -8 -8 -7 -6 -6 -6 -5 -4 -3 -2 -2 -1 --------- Run | Scr Mat Min Exi Min Mat Sto Fac Fac Was Fac Fac Fac Res Res DSF Acc Total 12817 | 56 860 683 535 98 273 1676 173 865 294 1778 591 2365 424 82 36 2028 Wait 821 | . 50 . 11 . 19 50 1 67 . 98 1 450 2 . . 72 Move 11005 | 44 752 671 524 94 224 1506 140 679 286 1503 555 1750 378 76 32 1791 Hop 8 | . . . . . . . . . . . 2 4 . . . 2 Pick Up 154 | 7 16 2 . 1 11 14 4 15 3 25 4 24 3 1 1 23 Fast Attach 52 | . . . . . . 8 . 5 1 20 . 4 5 1 2 6 Attach 72 | 5 2 . . . 3 5 6 9 . 10 3 15 1 . 1 12 Detach 5 | . . . . . . 1 . . . 1 . 1 . 1 . 1 Swap 58 | . 5 2 . . 1 7 1 8 . 5 4 10 . . . 15 Drop 114 | . 2 3 . 2 7 19 . 7 4 36 1 13 4 2 . 14 Fire 185 | . 33 4 . 1 7 57 20 49 . 12 . . 1 1 . . Melee 316 | . . . . . . 4 . 7 . 68 21 94 30 . . 92 Ram 1 | . . . . . . . . 1 . . . . . . . . Kick . | . . . . . . . . . . . . . . . . . Crush 13 | . . 1 . . 1 5 1 5 . . . . . . . . Escape Stasis 13 | . . . . . . . . 13 . . . . . . . . Rewire . | . . . . . . . . . . . . . . . . . Trap . | . . . . . . . . . . . . . . . . . Miscellaneous . | . . . . . . . . . . . . . . . . . Route ------- -11/Scrapyard -10/Materials (discovered 5 exits: *Mat x3 / *Min x2) -10/Mines (discovered 3 exits: *Mat x2 / *Exi) -10/Exiles (discovered 2 exits: *Min x2) -9/Mines -8/Materials (discovered 2 exits: Fac / *Sto) -8/Storage -7/Factory -6/Factory -6/Waste -6/Factory -5/Factory (discovered 2 exits: *Fac / *Upp) -4/Factory -3/Research -2/Research -2/DSF -1/Access To Epsilon Eridani History --------- Turn | Location | Event 9 | -11/Scrapyard | Discovered new exit (range 13) 67 | -11/Scrapyard | Entered Materials 308 | -10/Materials | Build established: Mutant 426 | -10/Materials | Discovered new exit (range 6) 763 | -10/Materials | Discovered new exit (range 16) 1106 | -10/Materials | Discovered new exit (range 14) 1176 | -10/Materials | Discovered new exit (range 7) 1356 | -10/Materials | Discovered new exit (range 9) 1392 | -10/Materials | Identified exit to Materials 1438 | -10/Materials | Identified exit to Mines 1440 | -10/Materials | Entered Mines 1647 | -10/Mines | Joined a pair of Derelicts in attacking an 0b10 outpost 1942 | -10/Mines | Discovered exit to Materials (range 9) 2010 | -10/Mines | Learned location of Storage (-8) 2129 | -10/Mines | Deemed a non-threat by the Exiles lab entrance 2129 | -10/Mines | Discovered new exit (range 5) 2134 | -10/Mines | Identified exit to Exiles 2207 | -10/Mines | Assisted by bots powering up and referring to "LRC-V3" 2346 | -10/Mines | Learned 2 Materials zone layouts 2362 | -10/Mines | Discovered exit to Materials (range 7) 2530 | -10/Mines | Entered Exiles 2530 | -10/Exiles | Accompanied by 3 allies 2554 | -10/Exiles | Discovered new exit (range 14) 2575 | -10/Exiles | Identified exit to Mines 2607 | -10/Exiles | Met 8R-AWN 2631 | -10/Exiles | Met EX-HEX 2681 | -10/Exiles | Met EX-BIN 2842 | -10/Exiles | Met EX-DEC 2849 | -10/Exiles | Learned location of Zion (-6) 2923 | -10/Exiles | Visited The Gauntlet 3350 | -10/Exiles | Discovered exit to Mines (range 11) 3380 | -10/Exiles | Entered Mines 3380 | -9/Mines | Accompanied by 3 allies 3404 | -9/Mines | Assembled infested the area 3409 | -9/Mines | Assisted by a Guerilla fighting off Assembled 3488 | -9/Mines | Discovered new exit (range 10) 3501 | -9/Mines | Identified exit to Materials 3508 | -9/Mines | Found the Drone Emporium 3523 | -9/Mines | Found Prototype Device 3535 | -9/Mines | Entered Materials 3535 | -8/Materials | Accompanied by 2 allies 3535 | -8/Materials | Evolved 4 slots: Propulsion x2, Utility x2 3536 | -8/Materials | Identified exit to Factory 3537 | -8/Materials | Identified Bomb Drone Bay 3714 | -8/Materials | Garrison activated, responded to threat 3848 | -8/Materials | Discovered new exit (range 5) 3915 | -8/Materials | Identified exit to Storage 3954 | -8/Materials | Entered Storage 4422 | -8/Storage | Assisted by bots powering up and referring to "LRC-V3" 4715 | -8/Storage | Build established: Commander-Mutant 4772 | -8/Storage | Discovered exit to Factory (range 7) 5444 | -8/Storage | Build established: Scavenger-Mutant 5967 | -8/Storage | Repaired Lgt. Treads 6631 | -8/Storage | Entered Factory 6631 | -7/Factory | Evolved 2 slots: Utility x2 6750 | -7/Factory | Discovered new exit (range 16) 6870 | -7/Factory | Identified exit to Factory 6876 | -7/Factory | Lost 5 parts (1p2n1u1w) 6924 | -7/Factory | Entered another Factory area 6924 | -6/Factory | Evolved 2 slots: Utility x1, Weapon x1 7232 | -6/Factory | Build established: Tank 8174 | -6/Factory | Garrison activated, responded to threat 8319 | -6/Factory | Lost 4 parts (1p2u1w) 8659 | -6/Factory | Sucked down chute 8659 | -6/Factory | Entered Waste 8659 | -6/Waste | The area was eerily silent 8761 | -6/Waste | Build established: Scavenger-Mutant 8876 | -6/Waste | Discovered new exit (range 11) 8941 | -6/Waste | Identified exit to Factory 8943 | -6/Waste | Entered Factory 9275 | -6/Factory | Build established: Mutant 9669 | -6/Factory | Lost 3 parts (2p1u) 9890 | -6/Factory | Core integrity fell below 50% 10763 | -6/Factory | Discovered new exit (range 13) 10775 | -6/Factory | Identified exit to Factory 10776 | -6/Factory | Entered another Factory area 10776 | -5/Factory | Evolved 2 slots: Propulsion x2 10923 | -5/Factory | Discovered new exit (range 6) 10925 | -5/Factory | Identified exit to Upper Caves 11011 | -5/Factory | Discovered new exit (range 14) 11016 | -5/Factory | Identified exit to Factory 11016 | -5/Factory | Entered another Factory area 11016 | -4/Factory | Evolved 2 slots: Propulsion x2 11053 | -4/Factory | Build established: Scout 11663 | -4/Factory | Crushed by falling debris 12040 | -4/Factory | Lost 3 parts (2n1u) 12051 | -4/Factory | Found Prototype Processor 12052 | -4/Factory | Identified Exp. Signal Interpreter 12224 | -4/Factory | Lost 5 parts (1n1u3w) 12248 | -4/Factory | Spotted B-86 Titan 12357 | -4/Factory | Discovered new exit (range 16) 12360 | -4/Factory | Identified exit to Research 12360 | -4/Factory | Entered Research 12360 | -3/Research | Evolved 2 slots: Utility x2 12472 | -3/Research | Spotted B-86 Titan 12495 | -3/Research | Build established: Sprinter 12506 | -3/Research | Found Adv. Powered Armor 12511 | -3/Research | Discovered new exit (range 19) 12511 | -3/Research | Spotted B-86 Titan 12513 | -3/Research | Found Prototype Slashing Weapon 12513 | -3/Research | Identified Nanosword 12534 | -3/Research | Identified exit to Research 12534 | -3/Research | Entered another Research area 12534 | -2/Research | Evolved 2 slots: Utility x2 12557 | -2/Research | Identified exit to DSF 12557 | -2/Research | Entered DSF 12568 | -2/DSF | Discovered new exit (range 19) 12580 | -2/DSF | Identified exit to Access 12580 | -2/DSF | Entered Access 12580 | -1/Access | Evolved 2 slots: Utility x2 12826 | -1/Access | Spotted B-99 Colossus 13066 | -1/Access | Energy Cycler disabled 13304 | -1/Access | Spotted B-99 Colossus 13306 | -1/Access | Spotted B-99 Colossus 13328 | -1/Access | Discovered new exit (range 12) 13336 | -1/Access | Identified exit to Surface 13337 | *** | Escaped! Last Messages --------------- 13301_ R-10 Processor destroyed. 13303_ Acquired 112 matter. 13306_ Field Propulsion Drive destroyed. 13306_ Slug penetrates Wall. 13306_ Penetrated by Slug. 13306_ Slug penetrates Wall. 13306_ Penetrated by Slug. 13306_ Slug penetrates Wall. 13306_ Slug penetrates Door. 13306_ Slug penetrates Wall. 13306_ Slug penetrates Door. 13306_ Slug penetrates Wall. 13306_ Acquired 7 matter. 13328_ EXIT=FOUND 13330_ ALERT: Rogue bot located, Programmers report to Access Zone 7J. 13330_ Sneak attack on A-15 Conveyor. 13330_ K-01 Serf cleans the Terminal. 13336_ The Access Shell folds into the floor. 13336_ K-01 Serf cleans the Terminal. 13336_ EXIT=IDENTIFIED: SURFACE Map ----- +----------------------------------------------------+ | #?????????????????????????####????????????????? | | #?#??? ???????????????????????????????????????? | | #??????????????????????#????????#?????????????? | | #?? ????"?????????????????#???????#?????????#?? | | #????? """?????????????##??##???#?????#?##?#??? | | #??? ?"""????????????????????#????????????????? | | #?#????"???????#??????????#?????????#?????????? | | #?? ???????????????????#?????????##????????##?# | | #?# ?? ??????????????#????????#??#??????????#?? | | #######+##???????#?###??#??#??##??#?????#???#?# | | ####################################?? | | ##? | | ^ #?? | | ####### ""#####/######## #?# | | ######## #?????# ""#???# #? ?## | | #???????? #?????# ""##??# #? ??# | | #??#????? #?#???# T##??# #? ??? | | ##?#?#?#???? #?????# ""#?#?# #? ??# | | #???????? ??? ??????# ""###?# + ? ? | | #?#????????????????## ""##??# ## ??? | | ###?###? ???? ?????# ##?# ##+#### | | #?##???????????????## ##??# # | | ###?#????????????#??# #???# # | | #??#??#?????????????# #?#?# # * "" | | #?#?????????????????# #?#?# # "" | | ##??????????????????# @" #??## # """" | | #??????? ??????????## "" #?#?# # """" | | #??? ??????????#????# #??## !!! # """" | | #???????????????????# #???# !!! [ " """" | | #????#??????? ?#???# ###?# !!! # """" | | #???#?????????????#?#""""""""""#???# # "" | | #?????????"?????????????????????#??######### | | #????????"""?????????"???"???""#??#????###?# | | #???#???"""?????????#""""""""""#?#?##?#?#??# | | ##???#???"? ????????# #??#??#?????# | | # #??????????????# #?#?###?????# ! | | "" #??????????????# #?????####??# | | "T #?????#??????#?# #??#???#?#??# | | # #????????##??### ##?#???#???## | | ?### #? ?? ???#?#??## #??#?????#?######## | | #### #?????# ??##??#? #?####?##?#???# | | #? #?????+?##?##??###" #""###########??## | | ## #??? ?# ##?#?#??### # ##### | | ## ####### ########### # #???# | | # + ###?# | | / ] # ! #?#?# | | # % # ##### | | # ^ #############"#### | | ! # " ##"################## + | | # "" "" """ # #?##??## # | +----------------------------------------------------+ Best States ------------- Heat Dissipation 90 Energy Generation 44 Energy Capacity 370 Matter Stores 300 Matter Capacity 300 Sight Range 20 Robot Scan Range 16 Terrain Scan Range 20 Terrain Scan Density 210 Jamming Range 16 Power Amplification 30 Additional Mass Support 9 Corruption Containment 12 Armor Coverage 750 Resistance: TH 20 Resistance: EM 15 Core Shielding 30 Utility Shielding 66 Weapon Shielding 33 Evasion (%) 76 Targeting Accuracy 8 Melee Accuracy 16 Recoil Reduction 4 Item Schematics ----------------- Huge Storage Unit | -10/Materials | Hacked Robot Schematics ------------------ None Fabricated ------------ Nothing Alien Tech Used ----------------- None Achievements -------------- None Challenges ------------ None Game ------ Seed TractorAntimatterSource Manual? 0 Play Time 03:08:19 Cumulative 220.8 hours Start 2022.08.29 @ 18:11:45 End 2022.08.31 @ 18:51:11 Sessions 53 Manual Loads 0 Difficulty Rogue Special Mode None Game No. 249 Rogue 116 Adventurer 81 Explorer 52 Win Type 0 Total 10 Types 9/0/1/0/0/0/0/0/0 Lore% 32 Gallery% 66 Achievement% 55 Wizard Run 0 Options --------- ASCII 0 Keyboard 0 Movement Mouse Keybinds 0 Fullscreen 1 Font 12/Tallcaps Map View 83x54 Tactical HUD 1 Map Filters NONE Filters NONE Steam 1 RUN: a0bb1b7a-70ca-468e-8c46-612fc701c755